bitfinex/quotes_BTCUSD_20250124
["timestamp","ask_amount","ask_price","bid_price","bid_amount"]
[1737760812473,0.67568473,104460.0,104450.0,0.5610484]
[1737760813044,0.67568473,104460.0,104450.0,0.56831901]
[1737760815594,0.55168473,104460.0,104450.0,0.48711901]
[1737760816147,0.5128786,104460.0,104450.0,0.48711901]
[1737760816556,0.4937326,104460.0,104450.0,0.48711901]
[1737760816755,0.43165517,104460.0,104450.0,0.48711901]
[1737760818048,0.33592517,104460.0,104450.0,0.48711901]
[1737760818253,0.27848717,104460.0,104450.0,0.48711901]
[1737760818641,0.24840215,104460.0,104450.0,0.48711901]
[1737760819161,0.17181815,104460.0,104450.0,0.48711901]
[1737760819394,0.15267215,104460.0,104450.0,0.48711901]
[1737760820624,0.11567215,104460.0,104450.0,0.48711901]
[1737760821150,0.09652615,104460.0,104450.0,0.48711901]
[1737760821530,0.05823415,104460.0,104450.0,0.48711901]
[1737760821792,0.285,104480.0,104470.0,0.05597061]
[1737760821972,0.27510211,104480.0,104470.0,0.47077215]
[1737760822180,0.27510211,104480.0,104470.0,0.46981518]
[1737760822767,0.27510211,104480.0,104470.0,0.49950613]
[1737760822965,0.27510211,104480.0,104470.0,0.49936886]
[1737760823403,0.25596011,104480.0,104470.0,0.49936886]
[1737760824318,0.07953468,104480.0,104470.0,0.49936886]
[1737760825158,0.02182805,104480.0,104470.0,0.49936886]
[1737760825309,5e-08,104480.0,104470.0,0.49936886]
[1737760827611,5e-08,104480.0,104470.0,0.51835815]
[1737760827900,5e-08,104480.0,104470.0,0.52793404]
[1737760830180,5e-08,104480.0,104470.0,0.34824309]
[1737760830385,5e-08,104480.0,104470.0,0.34097248]
[1737760830595,5e-08,104480.0,104470.0,0.49824309]
[1737760831877,5e-08,104480.0,104470.0,0.49097248]
[1737760832084,0.00029784,104480.0,104470.0,0.44240975]
[1737760835365,0.00029784,104480.0,104470.0,0.4720718]
[1737760837084,0.00029784,104480.0,104470.0,0.52434241]
[1737760838396,8.4e-07,104480.0,104470.0,0.52434241]
[1737760838594,0.000298,104500.0,104490.0,0.27211361]
[1737760838797,0.000298,104500.0,104490.0,0.45075523]
[1737760839742,0.00034719,104500.0,104490.0,0.45075523]
[1737760840524,0.00034719,104500.0,104490.0,0.49575523]
[1737760842087,0.00034719,104500.0,104490.0,0.51575523]
[1737760843745,0.00034719,104500.0,104490.0,0.53520886]
[1737760844627,0.00034719,104500.0,104490.0,0.54458306]
[1737760846803,1.9e-07,104500.0,104490.0,0.54458306]
[1737760847250,0.00025798,104510.0,104500.0,0.29510261]
[1737760847451,0.00025798,104510.0,104500.0,0.42211195]
[1737760848865,9.8e-07,104510.0,104500.0,0.42211195]
[1737760851704,9.8e-07,104510.0,104500.0,0.47051195]
[1737760852769,0.00025877,104520.0,104510.0,0.00727061]
[1737760853006,7.7e-07,104520.0,104510.0,0.42202769]
[1737760853203,7.7e-07,104520.0,104510.0,0.45073323]
[1737760853642,0.0785,104540.0,104530.0,0.287799]
[1737760853866,0.07899413,104540.0,104530.0,0.44344062]
[1737760854302,0.07899413,104540.0,104530.0,0.45071123]
[1737760856348,0.00049413,104540.0,104530.0,0.45071123]
[1737760859078,0.00040631,104540.0,104530.0,0.45071123]
[1737760860201,3.1e-07,104540.0,104530.0,0.45071123]
[1737760860882,3.1e-07,104540.0,104530.0,0.46024052]
[1737760861333,3.1e-07,104540.0,104530.0,0.47940612]
[1737760867370,0.07500031,104540.0,104530.0,0.44913551]
[1737760867594,0.07500031,104540.0,104530.0,0.47213551]
[1737760867794,0.07500031,104540.0,104530.0,0.44913551]
[1737760868536,0.07500031,104540.0,104530.0,0.47940612]
[1737760868740,0.07500031,104540.0,104530.0,0.47954782]
[1737760869178,0.07529789,104540.0,104530.0,0.47954782]
[1737760870811,0.07529789,104540.0,104530.0,0.47227721]
[1737760873571,0.12109789,104540.0,104530.0,0.29927721]
[1737760874179,0.12109789,104540.0,104530.0,0.44927721]
[1737760874803,0.12109789,104540.0,104530.0,0.43011161]
[1737760875436,0.12109789,104540.0,104530.0,0.37181728]
[1737760877883,0.12109789,104540.0,104530.0,0.40156098]
[1737760878088,0.07529789,104540.0,104530.0,0.42456098]
[1737760878687,0.07529789,104540.0,104530.0,0.40156098]
[1737760882995,0.07529789,104540.0,104530.0,0.43019326]
[1737760883891,0.07529789,104540.0,104530.0,0.40156098]
[1737760884749,0.07529789,104540.0,104530.0,0.42156098]
[1737760884951,0.07529789,104540.0,104530.0,0.44456098]
[1737760905340,0.12449789,104540.0,104530.0,0.42156098]
[1737760909840,0.07529789,104540.0,104530.0,0.44456098]
[1737760913077,0.07529789,104540.0,104530.0,0.42156098]
[1737760917314,0.07529789,104540.0,104530.0,0.44456098]
[1737760917524,8.9e-07,104540.0,104530.0,0.45183159]
[1737760920906,0.000298,104560.0,104550.0,0.264777]
[1737760921113,0.00018732,104560.0,104550.0,0.45077088]
[1737760921326,0.00018732,104560.0,104550.0,0.49987088]
[1737760923780,0.00018732,104560.0,104550.0,0.49260027]
[1737760923994,0.07728732,104560.0,104550.0,0.49260027]
[1737760924199,0.07728732,104560.0,104550.0,0.44350027]
[1737760926493,0.00018732,104560.0,104550.0,0.45077088]
[1737760926697,0.00018732,104560.0,104550.0,0.50047088]
[1737760926898,0.00018732,104560.0,104550.0,0.52944688]
[1737760927676,3.2e-07,104560.0,104550.0,0.52944688]
[1737760928726,3.2e-07,104560.0,104550.0,0.52958858]
[1737760929127,9e-07,104560.0,104550.0,0.52958858]
[1737760929338,0.000298,104580.0,104570.0,0.114755]
[1737760929546,0.00029779,104590.0,104580.0,0.287744]
[1737760929752,0.00029779,104590.0,104580.0,0.41483499]
[1737760931326,0.00029779,104590.0,104580.0,0.4221056]
[1737760934343,0.00029779,104590.0,104580.0,0.44103597]
[1737760934548,0.00029779,104590.0,104580.0,0.43376536]
[1737760934760,0.07699779,104590.0,104580.0,0.43376536]
[1737760934962,0.12659779,104590.0,104580.0,0.26076536]
[1737760935405,0.12659779,104590.0,104580.0,0.23102166]
[1737760936016,0.12659779,104590.0,104580.0,0.38102166]
[1737760936604,0.12659779,104590.0,104580.0,0.39046889]
[1737760937038,0.12659779,104590.0,104580.0,0.42011352]
[1737760938398,0.12659779,104590.0,104580.0,0.39046889]
[1737760938604,0.12659779,104590.0,104580.0,0.42010796]
[1737760939011,0.12659779,104590.0,104580.0,0.39046889]
[1737760939483,0.12659779,104590.0,104580.0,0.42010714]
[1737760939688,0.12659779,104590.0,104580.0,0.39046889]
[1737760939891,0.12659779,104590.0,104580.0,0.42010672]
[1737760940374,0.12659779,104590.0,104580.0,0.42024852]
[1737760941473,0.12659779,104590.0,104580.0,0.39061069]
[1737760942270,0.12659779,104590.0,104580.0,0.42025672]
[1737760943301,0.07699779,104590.0,104580.0,0.44325672]
[1737760947880,7.9e-07,104590.0,104580.0,0.45052733]
[1737760948055,7.9e-07,104590.0,104580.0,0.52082733]
[1737760949002,7.9e-07,104590.0,104580.0,0.49902733]
[1737760949737,7.9e-07,104590.0,104580.0,0.49175672]
[1737760950237,7.9e-07,104590.0,104580.0,0.49902733]
[1737760950969,7.9e-07,104590.0,104580.0,0.49175672]
[1737760951107,7.9e-07,104590.0,104580.0,0.49902733]
[1737760957137,0.000298,104610.0,104600.0,0.287722]
[1737760957335,0.00044615,104610.0,104600.0,0.4433476]
[1737760960252,0.08164615,104610.0,104600.0,0.4433476]
[1737760961716,0.08164615,104610.0,104600.0,0.46289863]
[1737760962112,0.08164615,104610.0,104600.0,0.47253159]
[1737760972420,0.08164615,104610.0,104600.0,0.49253159]
[1737760973449,0.08150902,104610.0,104600.0,0.49253159]
[1737760974593,0.08150902,104610.0,104600.0,0.46953159]
[1737760975493,0.08150902,104610.0,104600.0,0.46967329]
[1737760986095,0.08150902,104610.0,104600.0,0.49267329]
[1737760987488,0.08150902,104610.0,104600.0,0.46404101]
[1737760987850,0.00030902,104610.0,104600.0,0.46404101]
[1737760989416,0.07550902,104610.0,104600.0,0.46404101]
[1737760997052,0.07550902,104610.0,104600.0,0.44104101]
[1737760997277,0.12623841,104610.0,104600.0,0.29104101]
[1737760998023,0.12623841,104610.0,104600.0,0.44104101]
[1737761002510,0.12350902,104610.0,104600.0,0.44104101]
[1737761003796,0.12623841,104610.0,104600.0,0.44104101]
[1737761005505,0.12350902,104610.0,104600.0,0.44104101]
[1737761005659,0.12623841,104610.0,104600.0,0.44104101]
[1737761009958,0.12350902,104610.0,104600.0,0.44104101]
[1737761013842,0.07550902,104610.0,104600.0,0.46404101]
[1737761014025,0.00030902,104610.0,104600.0,0.46404101]
[1737761044332,0.07580902,104610.0,104600.0,0.46404101]
[1737761044937,0.12420902,104610.0,104600.0,0.29104101]
[1737761045164,0.12693841,104610.0,104600.0,0.27148998]
[1737761045373,0.12693841,104610.0,104600.0,0.26185702]
[1737761045545,0.13130694,104610.0,104600.0,0.26185702]
[1737761045746,0.13130694,104610.0,104600.0,0.41185702]
[1737761045947,0.13130694,104610.0,104600.0,0.26185702]
[1737761046150,0.13130694,104610.0,104600.0,0.41185702]
[1737761049113,0.12857755,104610.0,104600.0,0.41185702]
[1737761049314,0.12954211,104610.0,104600.0,0.41185702]
[1737761049578,0.12857755,104610.0,104600.0,0.41185702]
[1737761050970,0.12954211,104610.0,104600.0,0.41185702]
[1737761051311,0.12857755,104610.0,104600.0,0.38221099]
[1737761052354,0.26425311,104610.0,104600.0,0.1701417]
[1737761052680,0.26328855,104610.0,104600.0,0.1501417]
[1737761054983,0.58368855,104610.0,104600.0,0.1501417]
[1737761055958,0.1516,104590.0,104580.0,0.1531228]
[1737761056162,0.1516,104590.0,104580.0,0.25047009]
[1737761056163,0.13432939,104590.0,104580.0,0.25047009]
[1737761056536,0.13886994,104590.0,104580.0,0.25047009]
[1737761057346,0.13614055,104590.0,104580.0,0.25047009]
[1737761057528,0.13886994,104590.0,104580.0,0.25047009]
[1737761057925,0.13886994,104590.0,104580.0,0.40047009]
[1737761059195,0.13614055,104590.0,104580.0,0.40047009]
[1737761063013,0.00454055,104590.0,104580.0,0.40047009]
[1737761065948,0.00454055,104590.0,104580.0,0.43018835]
[1737761072432,0.00454055,104590.0,104580.0,0.45318835]
[1737761072611,0.00454055,104590.0,104580.0,0.45305122]
[1737761072812,0.13189758,104600.0,104580.0,0.45305122]
[1737761073062,0.13189758,104600.0,104590.0,0.36208029]
[1737761073267,0.13189758,104600.0,104590.0,0.39179855]
[1737761077273,0.13189758,104600.0,104590.0,0.42043083]
[1737761077471,0.00029758,104600.0,104590.0,0.42043083]
[1737761078238,0.00029758,104600.0,104590.0,0.43915813]
[1737761078820,0.00029758,104600.0,104590.0,0.44889782]
[1737761079020,0.00029758,104600.0,104590.0,0.47189782]
[1737761080213,0.00029758,104600.0,104590.0,0.60269782]
[1737761089874,0.00029758,104600.0,104590.0,0.55479782]
[1737761097562,0.00029758,104600.0,104590.0,0.47189782]
[1737761099582,0.00029758,104600.0,104590.0,0.47289782]
[1737761103529,0.00029758,104600.0,104590.0,0.44426554]
[1737761107711,0.12469758,104600.0,104590.0,0.44426554]
[1737761109083,0.00029758,104600.0,104590.0,0.44426554]
[1737761116762,0.07579758,104600.0,104590.0,0.44426554]
[1737761119155,0.07579758,104600.0,104590.0,0.42126554]
[1737761119312,0.12812697,104600.0,104590.0,0.42126554]
[1737761125173,0.12539758,104600.0,104590.0,0.42126554]
[1737761134556,0.12539758,104600.0,104590.0,0.44426554]
[1737761134762,0.00029758,104600.0,104590.0,0.44426554]
[1737761139385,0.12939758,104600.0,104590.0,0.44426554]
[1737761140651,0.12939758,104600.0,104590.0,0.42126554]
[1737761143333,0.13212697,104600.0,104590.0,0.42126554]
[1737761147315,0.12939758,104600.0,104590.0,0.42126554]
[1737761147978,0.00029758,104600.0,104590.0,0.42126554]
[1737761148725,0.00029758,104600.0,104590.0,0.44426554]
[1737761149123,0.00029758,104600.0,104590.0,0.52236554]
[1737761152516,0.00029758,104600.0,104590.0,0.60817959]
[1737761157130,5.8e-07,104600.0,104590.0,0.60817959]
[1737761163936,5.8e-07,104600.0,104590.0,0.98510959]
[1737761164338,0.08240058,104600.0,104590.0,1.00810959]
[1737761170791,0.08240058,104600.0,104590.0,1.00825139]
[1737761178285,0.08240058,104600.0,104590.0,0.98525139]
[1737761179044,0.13282997,104600.0,104590.0,0.98525139]
[1737761179854,0.13010058,104600.0,104590.0,0.98525139]
[1737761180447,0.13010058,104600.0,104590.0,1.00825139]
[1737761190928,0.13282997,104600.0,104590.0,0.98525139]
[1737761198394,0.13282997,104600.0,104590.0,0.98425139]
[1737761205937,0.00272997,104600.0,104590.0,0.98425139]
[1737761206589,5.8e-07,104600.0,104590.0,1.00725139]
[1737761210857,5.8e-07,104600.0,104590.0,1.08685139]
[1737761214778,5.8e-07,104600.0,104590.0,1.00103734]
[1737761217673,5.8e-07,104600.0,104590.0,0.92143734]
[1737761221275,0.13110058,104600.0,104590.0,0.92143734]
[1737761223545,0.08170058,104600.0,104590.0,0.92143734]
[1737761236386,5.8e-07,104600.0,104590.0,0.92143734]
[1737761243498,0.1287696,104610.0,104600.0,0.287722]
[1737761243704,0.0002696,104610.0,104600.0,0.44341983]
[1737761248429,0.0002696,104610.0,104600.0,0.52934526]
[1737761253223,0.0002696,104610.0,104600.0,1.00735526]
[1737761258326,0.00013261,104610.0,104600.0,1.00735526]
[1737761262306,0.00013261,104610.0,104600.0,1.00749706]
[1737761262709,0.0004304,104610.0,104600.0,1.00749706]
[1737761265904,4e-07,104610.0,104600.0,1.00749706]
[1737761273667,4e-07,104610.0,104600.0,0.97886478]
[1737761282322,0.13092979,104610.0,104600.0,0.95586478]
[1737761285139,0.1282004,104610.0,104600.0,0.95586478]
[1737761287679,0.1482004,104610.0,104600.0,0.95586478]
[1737761288416,0.1482004,104610.0,104600.0,0.86993935]
[1737761291800,0.14824109,104610.0,104600.0,0.86993935]
[1737761298119,0.14920565,104610.0,104600.0,0.86993935]
[1737761299420,0.14824109,104610.0,104600.0,0.86993935]
[1737761304078,0.12824109,104610.0,104600.0,0.86993935]
[1737761304500,0.14824109,104610.0,104600.0,0.86993935]
[1737761307943,0.12824109,104610.0,104600.0,0.86993935]
[1737761310130,0.13097048,104610.0,104600.0,0.86993935]
[1737761310310,0.12824109,104610.0,104600.0,0.86993935]
[1737761315774,0.12824109,104610.0,104600.0,0.86945604]
[1737761333152,0.12824109,104610.0,104600.0,0.71945604]
[1737761333357,0.12824109,104610.0,104600.0,0.24144604]
[1737761334179,0.12920565,104610.0,104600.0,0.24144604]
[1737761335109,0.24391665,104610.0,104600.0,0.24144604]
[1737761335410,0.24295209,104610.0,104600.0,0.24144604]
[1737761336025,0.25295209,104610.0,104600.0,0.02986006]
[1737761336160,0.25295209,104610.0,104600.0,0.0001418]
[1737761336358,0.25295209,104610.0,104600.0,0.02986006]
[1737761336608,0.25295209,104610.0,104600.0,0.0001418]
[1737761336810,0.25295209,104610.0,104600.0,0.02995915]
[1737761337389,0.25295209,104610.0,104600.0,0.14468115]
[1737761337669,0.25295209,104610.0,104600.0,0.0001418]
[1737761338292,0.25295209,104610.0,104600.0,0.1148638]
[1737761339958,0.25295209,104610.0,104600.0,0.0001418]
[1737761343882,0.25295209,104610.0,104600.0,0.1148638]
[1737761344509,0.25295209,104610.0,104600.0,0.0001418]
[1737761345045,0.24295209,104610.0,104600.0,0.0001418]
[1737761345663,0.24295209,104610.0,104590.0,0.0001418]
[1737761345664,0.433522,104600.0,104590.0,0.0001418]
[1737761345874,0.76950415,104600.0,104590.0,0.0001418]
[1737761346084,0.70048672,104600.0,104590.0,0.0001418]
[1737761346263,0.70490102,104600.0,104590.0,0.0001418]
[1737761346902,0.268233,104590.0,104580.0,4.67e-06]
[1737761347139,0.36558029,104590.0,104580.0,4.67e-06]
[1737761347342,0.3980062,104590.0,104580.0,4.67e-06]
[1737761347554,0.42663417,104590.0,104580.0,4.67e-06]
[1737761348163,0.6656516,104590.0,104580.0,4.67e-06]
[1737761348675,0.7662516,104590.0,104580.0,4.67e-06]
[1737761348875,0.49443682,104580.0,104570.0,0.01]
[1737761349110,0.76830411,104580.0,104570.0,0.01]
[1737761349316,0.77271858,104580.0,104570.0,0.01]
[1737761349760,0.80905931,104580.0,104570.0,0.01]
[1737761350173,0.9064066,104580.0,104570.0,0.01]
[1737761350577,0.245266,104560.0,104550.0,0.0001417]
[1737761350792,0.268266,104560.0,104550.0,0.0001417]
[1737761350975,0.27257049,104560.0,104550.0,0.0001417]
[1737761351831,0.27261979,104560.0,104550.0,0.0001417]
[1737761352257,0.55579356,104560.0,104550.0,0.0001417]
[1737761352653,0.47056708,104560.0,104550.0,0.0001417]
[1737761352801,0.36996708,104560.0,104550.0,0.0001417]
[1737761354066,0.64532524,104560.0,104550.0,0.0001417]
[1737761354496,0.53996708,104560.0,104550.0,0.0001417]
[1737761355407,0.54943856,104560.0,104550.0,0.0001417]
[1737761356293,0.25961979,104560.0,104550.0,0.0001417]
[1737761369166,0.24961979,104560.0,104550.0,0.0001417]
[1737761369408,0.12911979,104560.0,104550.0,0.0001417]
[1737761369545,0.13008435,104560.0,104550.0,0.0001417]
[1737761369996,0.28310935,104560.0,104540.0,0.34637471]
[1737761370216,0.00096456,104550.0,104540.0,0.32899029]
[1737761370420,0.00523955,104550.0,104540.0,0.32899029]
[1737761370859,0.00523955,104550.0,104540.0,0.3288533]
[1737761372414,0.02427499,104550.0,104540.0,0.3288533]
[1737761372616,0.02427499,104550.0,104540.0,0.4788533]
[1737761372818,0.02427499,104550.0,104540.0,0.55458558]
[1737761372819,0.00427499,104550.0,104540.0,0.55458558]
[1737761373163,0.00700438,104550.0,104540.0,0.58422778]
[1737761373564,0.00427499,104550.0,104540.0,0.58422778]
[1737761378094,0.00427499,104550.0,104540.0,0.58436968]
[1737761378530,0.00457299,104550.0,104540.0,0.58436968]
[1737761379117,0.00457299,104550.0,104540.0,0.6038611]
[1737761379318,0.00730238,104550.0,104540.0,0.6038611]
[1737761379725,0.00457299,104550.0,104540.0,0.6038611]
[1737761383719,0.00457299,104550.0,104540.0,0.47829809]
[1737761383943,0.02553755,104550.0,104540.0,0.44966581]
[1737761384551,0.34593755,104550.0,104540.0,0.44966581]
[1737761384781,0.34497299,104550.0,104540.0,0.44966581]
[1737761388427,0.34497299,104550.0,104540.0,0.43017439]
[1737761388623,0.32497299,104550.0,104540.0,0.28017439]
[1737761389248,0.34497299,104550.0,104540.0,0.28017439]
[1737761389456,0.32497299,104550.0,104540.0,0.28017439]
[1737761393992,0.20004999,104550.0,104540.0,0.0297841]
[1737761394208,0.21004999,104550.0,104540.0,0.0001419]
[1737761394841,0.21004999,104550.0,104540.0,0.1149299]
[1737761395896,0.21004999,104550.0,104540.0,0.0001419]
[1737761396695,0.09527299,104550.0,104540.0,0.0001419]
[1737761396907,0.09623755,104550.0,104540.0,0.1149299]
[1737761398354,0.09623755,104550.0,104540.0,0.0001419]
[1737761399508,0.41663755,104550.0,104540.0,0.0001419]
[1737761399708,0.41567299,104550.0,104540.0,0.0001419]
[1737761399916,0.53044999,104550.0,104540.0,0.0001419]
[1737761400254,0.57664999,104550.0,104540.0,0.0001419]
[1737761400913,0.56664999,104550.0,104540.0,0.0001419]
[1737761404910,0.24624999,104550.0,104540.0,0.0001419]
[1737761418356,0.14147299,104550.0,104540.0,0.0001419]
[1737761418572,0.00457299,104550.0,104540.0,0.21227719]
[1737761418782,0.00457299,104550.0,104540.0,0.33577719]
[1737761418987,0.00457299,104550.0,104540.0,0.51556063]
[1737761419437,0.000298,104550.0,104540.0,0.51556063]
[1737761419646,0.020298,104550.0,104540.0,0.51556063]
[1737761420276,0.02126256,104550.0,104540.0,0.51556063]
[1737761420656,0.020298,104550.0,104540.0,0.51556063]
[1737761421088,0.02126256,104550.0,104540.0,0.534304]
[1737761421481,0.02126256,104550.0,104540.0,0.54382202]
[1737761423321,0.34166256,104550.0,104540.0,0.54382202]
[1737761423520,0.340698,104550.0,104540.0,0.54382202]
[1737761427103,0.320698,104550.0,104540.0,0.40157865]
[1737761429066,0.320698,104550.0,104540.0,0.39206063]
[1737761429271,0.255675,104550.0,104540.0,0.0001419]
[1737761431277,0.245675,104550.0,104540.0,0.0001419]
[1737761432824,0.36602229,104550.0,104540.0,0.0001419]
[1737761433238,0.53602229,104550.0,104540.0,0.0001419]
[1737761434696,0.56507056,104550.0,104540.0,0.0001419]
[1737761435816,0.51602229,104550.0,104540.0,0.0001419]
[1737761436014,0.53602229,104550.0,104540.0,0.0001419]
[1737761437930,0.64134054,104550.0,104540.0,0.0001419]
[1737761438138,0.72665879,104550.0,104540.0,0.0001419]
[1737761438567,0.76415764,104550.0,104540.0,0.0001419]
[1737761438804,0.76415764,104550.0,104530.0,0.0001417]
[1737761438805,1.156388,104540.0,104530.0,0.0001417]
[1737761438987,1.51531542,104540.0,104530.0,0.0001417]
[1737761440836,0.54152825,104520.0,104510.0,0.03]
[1737761441020,0.64539554,104520.0,104510.0,0.03]
[1737761441170,0.62539554,104520.0,104510.0,0.03]
[1737761441380,0.72274283,104520.0,104510.0,0.03]
[1737761441987,0.72274283,104520.0,104510.0,0.03049413]
[1737761442188,0.62539554,104520.0,104510.0,0.03049413]
[1737761444657,0.52007729,104520.0,104510.0,0.03049413]
[1737761444866,0.62539554,104520.0,104510.0,0.03049413]
[1737761446705,0.50707729,104520.0,104510.0,0.03049413]
[1737761446918,0.27133,104520.0,104510.0,0.03049413]
[1737761447122,0.27133,104520.0,104510.0,0.03063593]
[1737761447535,0.29133,104520.0,104510.0,0.03063593]
[1737761447744,0.40515729,104520.0,104510.0,0.03063593]
[1737761447989,0.59287554,104520.0,104510.0,0.03063593]
[1737761449127,0.62107554,104520.0,104510.0,0.03063593]
[1737761450198,0.68800171,104520.0,104510.0,0.03063593]
[1737761451579,0.71863771,104520.0,104510.0,0.03063593]
[1737761451807,0.815985,104520.0,104510.0,0.03063593]
[1737761453176,0.916585,104520.0,104510.0,0.03063593]
[1737761453384,0.81923771,104520.0,104510.0,0.03063593]
[1737761454922,0.83845905,104520.0,104510.0,0.03063593]
[1737761459415,0.83845905,104520.0,104510.0,0.0074067]
[1737761459585,0.97163918,104520.0,104510.0,7e-07]
[1737761460635,0.97163918,104520.0,104490.0,0.0001417]
[1737761460636,0.415932,104500.0,104490.0,0.0001417]
[1737761460838,0.87389483,104500.0,104490.0,0.0001417]
[1737761462023,0.67122929,104500.0,104490.0,0.0001417]
[1737761462414,0.77654754,104500.0,104490.0,0.0001417]
[1737761465248,0.78621243,104500.0,104490.0,0.0001417]
[1737761465653,0.58681418,104500.0,104490.0,0.0001417]
[1737761465863,0.55729418,104500.0,104490.0,0.0001417]
[1737761466486,0.60029418,104500.0,104490.0,0.0001417]
[1737761466912,0.47219418,104500.0,104490.0,0.0001417]
[1737761467346,0.54976759,104500.0,104490.0,0.0001417]
[1737761467613,0.45219418,104500.0,104490.0,0.0001417]
[1737761467855,0.55279418,104500.0,104490.0,0.0001417]
[1737761468094,0.36217929,104500.0,104490.0,0.0001417]
[1737761468306,0.274832,104500.0,104490.0,0.0001417]
[1737761470920,0.01,104500.0,104490.0,0.1149847]
[1737761471122,0.277932,104510.0,104490.0,0.3466087]
[1737761471325,0.00096456,104500.0,104490.0,0.1934847]
[1737761474427,0.26793,104510.0,104490.0,0.29083199]
[1737761474646,0.47216265,104520.0,104500.0,0.193932]
[1737761474863,0.114821,104510.0,104500.0,0.1253]
[1737761476511,0.00096456,104510.0,104500.0,0.393238]
[1737761476722,0.35182683,104520.0,104510.0,0.193921]
[1737761477110,0.32119083,104520.0,104510.0,0.193921]
[1737761478294,0.00079083,104520.0,104510.0,0.33746829]
[1737761483893,0.02079083,104520.0,104510.0,0.33746829]
[1737761485710,0.00079083,104520.0,104510.0,0.33746829]
[1737761486385,0.00352022,104520.0,104510.0,0.33746829]
[1737761486610,0.00079083,104520.0,104510.0,0.48746829]
[1737761486810,0.00079083,104520.0,104510.0,0.54864066]
[1737761487013,0.00029779,104530.0,104510.0,0.54864066]
[1737761487014,0.00029779,104530.0,104520.0,0.41931]
[1737761487190,0.00302739,104550.0,104520.0,0.32143281]
[1737761487392,0.000298,104550.0,104540.0,0.49363529]
[1737761487602,0.00302739,104550.0,104540.0,0.53816042]
[1737761490061,0.00302739,104550.0,104540.0,0.51488213]
[1737761490266,0.00302739,104550.0,104540.0,0.49363529]
[1737761490468,0.00302739,104550.0,104540.0,0.5381126]
[1737761490919,0.02302739,104550.0,104540.0,0.5381126]
[1737761491663,0.00302739,104550.0,104540.0,0.51483431]
[1737761491843,0.02302739,104550.0,104540.0,0.5381126]
[1737761492150,0.00302739,104550.0,104540.0,0.5381126]
[1737761492349,0.00302739,104550.0,104540.0,0.55744268]
[1737761492503,0.00302739,104550.0,104540.0,0.56684703]
[1737761492707,0.000298,104550.0,104540.0,0.56684703]
[1737761493106,0.000298,104550.0,104540.0,0.58984703]
[1737761497410,0.000298,104550.0,104540.0,0.54564801]
[1737761497613,0.000298,104550.0,104540.0,0.52236972]
[1737761503315,0.00302718,104570.0,104540.0,0.41386972]
[1737761503530,0.32312939,104590.0,104570.0,0.0774]
[1737761503753,0.00272939,104590.0,104580.0,0.36304741]
[1737761503962,0.02272939,104600.0,104590.0,0.264733]
[1737761504161,0.00272939,104600.0,104590.0,0.36208029]
[1737761504563,0.00272939,104600.0,104590.0,0.39004806]
[1737761504760,0.00272939,104600.0,104590.0,0.39019621]
[1737761505147,0.00272939,104600.0,104590.0,0.5365618]
[1737761505747,0.00272939,104600.0,104590.0,0.5559892]
[1737761506050,0.00272939,104600.0,104590.0,0.52519598]
[1737761506256,0.02272939,104600.0,104590.0,0.52519598]
[1737761506730,0.00302718,104600.0,104590.0,0.52519598]
[1737761510088,0.00029779,104600.0,104590.0,0.52519598]
[1737761511712,0.00029779,104600.0,104590.0,0.5655004]
[1737761513110,0.00302718,104600.0,104590.0,0.5655004]
[1737761513778,0.02302718,104600.0,104590.0,0.53470718]
[1737761514080,0.02302718,104600.0,104590.0,0.50673941]
[1737761514556,0.02302718,104600.0,104590.0,0.53629958]
[1737761515152,0.00302718,104600.0,104590.0,0.53629958]
[1737761515359,0.02302718,104600.0,104590.0,0.53629958]
[1737761516836,0.02029779,104600.0,104590.0,0.45889958]
[1737761517044,0.02126235,104600.0,104590.0,0.39116704]
[1737761517274,0.06919779,104600.0,104590.0,0.39116704]
[1737761517486,0.07016235,104600.0,104590.0,0.27439235]
[1737761517690,0.16488435,104600.0,104590.0,0.11488115]
[1737761517905,0.05016235,104600.0,104590.0,0.11488115]
[1737761518109,0.16488435,104600.0,104590.0,0.11488115]
[1737761518400,0.05016235,104600.0,104590.0,0.11488115]
[1737761520356,0.16488435,104600.0,104590.0,0.11488115]
[1737761521856,0.24158435,104600.0,104590.0,0.00014815]
[1737761522089,0.24061979,104600.0,104590.0,0.00014815]
[1737761523996,0.114735,104590.0,104570.0,0.4208848]
[1737761524210,0.26881919,104590.0,104570.0,0.36523209]
[1737761524417,0.19240856,104580.0,104570.0,0.0001418]
[1737761524624,0.24130856,104580.0,104570.0,0.0001418]
[1737761524834,0.240344,104580.0,104570.0,0.0001418]
[1737761525488,0.1256,104580.0,104570.0,0.0001418]
[1737761525693,0.1256,104580.0,104570.0,0.1148968]
[1737761525694,0.12656456,104580.0,104570.0,0.1148968]
[1737761526077,0.12656456,104580.0,104570.0,0.11468225]
[1737761529058,0.06226456,104580.0,104570.0,0.11468225]
[1737761530074,0.17700856,104580.0,104570.0,0.11468225]
[1737761530433,0.17700856,104580.0,104570.0,0.11482405]
[1737761531237,0.06226456,104580.0,104570.0,0.11482405]
[1737761535063,0.00014163,104590.0,104570.0,0.09748909]
[1737761535295,0.00014163,104590.0,104580.0,0.21209129]
[1737761535728,0.32054163,104590.0,104580.0,0.41169129]
[1737761535932,0.00014163,104590.0,104580.0,0.51817761]
[1737761536134,6.3e-07,104590.0,104580.0,0.54117761]
[1737761538571,6.3e-07,104590.0,104580.0,0.54545495]
[1737761538777,6.3e-07,104590.0,104580.0,0.51817761]
[1737761539201,0.02273002,104590.0,104580.0,0.46857761]
[1737761539643,0.02273002,104590.0,104580.0,0.47795334]
[1737761539752,0.02273002,104590.0,104580.0,0.49708075]
[1737761542716,0.02273002,104590.0,104580.0,0.49722255]
[1737761543120,0.02302781,104590.0,104580.0,0.49722255]
[1737761545560,0.00029842,104590.0,104580.0,0.52022255]
[1737761545775,0.00029842,104590.0,104580.0,0.56982255]
[1737761548248,0.00029842,104590.0,104580.0,0.54682255]
[1737761549625,0.02029842,104590.0,104580.0,0.27042255]
[1737761549838,0.07669842,104590.0,104580.0,0.14338894]
[1737761550045,0.00029842,104590.0,104580.0,0.21223309]
[1737761550257,0.02029842,104590.0,104580.0,0.21223309]
[1737761550497,0.00029842,104590.0,104580.0,0.21223309]
[1737761553501,0.00029842,104590.0,104580.0,0.36223309]
[1737761553737,0.00029842,104590.0,104580.0,0.39194445]
[1737761554269,0.00029842,104590.0,104580.0,0.49504445]
[1737761558046,0.00029842,104590.0,104580.0,0.54284445]
[1737761560294,0.00016162,104590.0,104580.0,0.54284445]
[1737761572272,1e-08,104590.0,104580.0,0.54284445]
[1737761579152,1e-08,104590.0,104580.0,0.41494445]
[1737761580908,1e-08,104590.0,104580.0,0.89302445]
[1737761582341,1e-08,104590.0,104580.0,0.72002445]
[1737761583870,1e-08,104590.0,104580.0,0.95594988]
[1737761587531,1e-08,104590.0,104580.0,0.87002445]
[1737761590232,1e-08,104590.0,104580.0,0.89302445]
[1737761590435,1e-08,104590.0,104580.0,0.97552445]
[1737761592738,1e-08,104590.0,104580.0,0.98200445]
[1737761594923,1e-08,104590.0,104580.0,0.97894988]